{"text_format":"3","workbook":"xlsx","n_sheets":1,"sheets":["Final"],"not_rendered":{"defined_names":2},"read":"whole","date_system":"1900"}

{"sheet":"Final","index":0,"n_rows":247,"n_cols":20,"rows_kept":247,"merged":[[0,0,0,10],[1,0,1,10],[3,16,3,18]]}
["Vidhan Sabha Election-2012"]
["                                                                                                                                Details of Nomination                                                                                                           Dated : 07-01-2012"]
["District","AC No & Name","Serial Number of nomination paper","Name of Candidate (Sarv Sh./Smt)","Name of father*/mother/Husband (Sarv Sh.)","Age of Candidate (Year)","Address","Party affiliation","Particulars of castes, or tribes for candidates belonging to scheduled Caste or Scheduled Tribes","Electoral roll number of candidate","Date of Nomination"]
[1,2,3,4,5,6,7,8,9,10,"11",{"$nulls":5},"Nomination Form Received",null,null,"Total"]
["Pathankot","1-Sujanpur",1,"Karnail Chand","Kalu Ram","53 Yrs.","V.P.O Mamun, Teh& Distt. PTK","BSP","Ramdasia (SC)","128 Part No.-041 of 001-Sujanpur","09/01/2012",{"$f":"IF(K5=\"09/01/2012\",1,\"\")","v":1},{"$nulls":4},"Date","Count","Repeat"]
[null,null,2,"Sunita Rani","W/O Karnail Chand","46 Yrs","V.P.O Mamun, Teh& Distt. PTK","BSP","Ramdasia (SC)","129 Part No.-041 of 001-Sujanpur","09/01/2012",{"$f":"IF(K6=\"09/01/2012\",1,\"\")","v":1}]
[null,"2-Bhoa (SC)",1,"Seema Kumari","Vinod Kumar",33,"Vill.Lahri 183,P.O.Rattangarh,Tehsil & Distt.Pathankot","Bharatiya Janta Party","Mahasha","Part No.78 and S.No. 480","09/01/2012",1,{"$nulls":4},"2012-05-01",1,0,{"$f":"R7+S7","v":1}]
[null,null,2,"Seema Kumari","Vinod Kumar",33,"Vill.Lahri 183,P.O.Rattangarh,Tehsil & Distt.Pathankot","Bharatiya Janta Party","Mahasha","Part No.78 and S.No. 480","09/01/2012",1]
[null,null,3,"Seema Kumari","Vinod Kumar",33,"Vill.Lahri 183,P.O.Rattangarh,Tehsil & Distt.Pathankot","Bharatiya Janta Party","Mahasha","Part No.78 and S.No. 480","09/01/2012",1]
[null,null,4,"Vinod Kumar","Charn Dass",39,"Vill.Lahri 183,P.O.Rattangarh,Tehsil & Distt.Pathankot","Bharatiya Janta Party","Mahasha","Part No.78 and S.No. 479","09/01/2012",1]
[null,null,"5","Lal Chand","Labhu Ram",41,"Vill.Kataru Chak,P.O.Farida Nagar,Tehsil & Distt.Pathankot","CPM,Punjab (unregistered unrecognized)","Ramdasia","Part No.95and S.No. 265","09/01/2012",1]
[null,"3-Pathankot",1,"Munisha","Suresh Kumar","27 year","House No 215 VPO Sarna Tehsil & Distt Pathankot","Independent","-","Sr No 443,Part No 162 of AC 002 Bhoa","09/01/2012",1,{"$nulls":4},"2012-06-01",7,1,{"$f":"R12+S12","v":8}]
[null,null,2,"Ashwani Kumar","Uma Dutt","46 Year","Bank Colony New Shashtari Nagar,Pathankot","Bharatiya Janata Party","-","Sr No1004, Part No 120 of AC 003-Pathankot","09/01/2012",1]
["Gurdaspur","4-Gurdaspur",1,"Gurbachan Singh","Mohinder Singh",58,"Vill & PO Babehali, The. & Dist. Gurdaspur","Shiromani Akali Dal (BADAL)","----------",1078,"09/01/2012",1,{"$nulls":4},"2012-07-01",16,1,17]
[null,"5-Dinanagar (SC)","Nil","Nil","Nil","Nil","Nil","Nil","Nil","Nil",null,"",{"$nulls":4},"2012-08-01",null,null,0]
[null,"6-Qadian",1,"Charanjit Kaur","Partap Singh Bajwa",52,"Ward NO. 3 , Sant Nagar PO Qadian The. Batala Dist. Gurdaspur","Indian National Congress","---------------",230,"09/01/2012",1,{"$nulls":4},"2012-09-01",null,null,0]
[null,"7-Batala","Nil","Nil","Nil","Nil","Nil","Nil","Nil","Nil",null,"",{"$nulls":4},"2012-10-01",null,null,0]
[null,"8-Sri Hargobindpur (SC)","Nil","Nil","Nil","Nil","Nil","Nil","Nil","Nil",null,"",{"$nulls":4},"2012-11-01",null,null,0]
[null,"9-Fatehgarh Churian",1,"Tript Rajinder Singh","Gurbachan Singh",66,"Civil Lines Qadian Dist. Gurdaspur","Indian National Congress","General","006/187/412","09/01/2012",1,{"$nulls":4},"2012-12-01",null,null,0]
[null,null,2,"Tript Rajinder Singh","Gurbachan Singh",66,"Civil Lines Qadian Dist. Gurdaspur","Indian National Congress","General","006/187/412","09/01/2012",1]
[null,null,3,"Tript Rajinder Singh","Gurbachan Singh",66,"Civil Lines Qadian Dist. Gurdaspur","Indian National Congress","General","006/187/412","09/01/2012",1]
[null,null,4,"Ratneshwer Kaur (Covering Candidate)","Tript Rajinder Singh",64,"Civil Lines Qadian Dist. Gurdaspur","Indian National Congress","General","006/187/413","09/01/2012",1]
[null,null,5,"Ratneshwer Kaur (Covering Candidate)","Tript Rajinder Singh",64,"Civil Lines Qadian Dist. Gurdaspur","Indian National Congress","General","006/187/413","09/01/2012",1]
[null,null,6,"Ratneshwer Kaur (Covering Candidate)","Tript Rajinder Singh",64,"Civil Lines Qadian Dist. Gurdaspur","Indian National Congress","General","006/187/413","09/01/2012",1]
[null,"10-Dera Baba Nanak","Nil","Nil","Nil","Nil","Nil","Nil","Nil","Nil",null,"",{"$nulls":4},"Total",{"$f":"SUM(R7:R19)","v":24},{"$f":"SUM(S7:S19)","v":2},26]
["Amritsar","11-Ajnala","Nil","Nil","Nil","Nil","Nil","Nil","Nil","Nil",null,""]
[null,"12-Raja Sansi",1,"Sh. Vir Singh","Sh. Chanan Singh","63 Years","VPO. Lopoke, Tehsil Ajnala, District Amritsar","Shiromani Akali Dal","General","Booth No. 71, Sr. No. 455, 12-Raja Sansi","09/01/2012",1]
[null,null,2,"Sh. Vir Singh","Sh. Chanan Singh","63 Years","VPO. Lopoke, Tehsil Ajnala, District Amritsar","Shiromani Akali Dal","General","Booth No. 71, Sr. No. 455, 12-Raja Sansi","09/01/2012",1]
[null,null,3,"Sh. Ranbir Singh","Sh. Vir Singh ","36 Years","VPO. Lopoke, Tehsil Ajnala, District Amritsar","Shiromani Akali Dal","General","Booth No. 71, Sr. No. 463, 12-Raja Sansi","09/01/2012",1]
[null,null,4,"Sh. Ranbir Singh","Sh. Vir Singh ","36 Years","VPO. Lopoke, Tehsil Ajnala, District Amritsar","Shiromani Akali Dal","General","Booth No. 71, Sr. No. 463, 12-Raja Sansi","09/01/2012",1]
[null,"13-Majitha",1,"Sh. Bikram Singh","Sh. Satyajit Singh","36 Years","H. No. 97-A, Ward No. 5, Majitha District Amritsar","S A D","No","Sr. No. 13 Part No. 26","09/01/2012",1]
[null,null,2,"Sh. Bikram Singh","Sh. Satyajit Singh","36 Years","H. No. 97-A, Ward No. 5, Majitha District Amritsar","S A D","No","Sr. No. 13 Part No. 26","09/01/2012",1]
[null,null,3,"Sh. Gurmehar Singh","Sh. Satyajit Singh","41 Years","H. No. 97-A, Ward No. 5, Majitha District Amritsar","S A D","No","Sr. No. 13 Part No. 27","09/01/2012",1]
[null,null,4,"Sh. Gurmehar Singh","Sh. Satyajit Singh","41 Years","H. No. 97-A, Ward No. 5, Majitha District Amritsar","S A D","No","Sr. No. 13 Part No. 27","09/01/2012",1]
[null,"14-Jandiala (SC)","Nil","Nil","Nil","Nil","Nil","Nil","Nil","Nil",null,""]
[null,"15-Amritsar North","Nil","Nil","Nil","Nil","Nil","Nil","Nil","Nil",null,""]
[null,"16-Amritsar West (SC)",1,"Sh. Sham Lal Gandhiwadi","Sh. Ram Dev","29 Years","H. No. 3795/22, Bamra Niwas, Putlighar, M.C. , Amritsar","Bhartya Chaitania Party","SC (Kauri)","Part No. 68  Sr. No. 572","09/01/2012",1]
[null,"17-Amritsar Central","Nil","Nil","Nil","Nil","Nil","Nil","Nil","Nil",null,""]
[null,"18-Amritsar East",1,"Sh. Sunir Sharma","Sh. Harish Mohan","42 Years","14, Race Course Road, Amritsar","Independent ","NA","Sr. No. 834 Booth No. 99, AC 15-Amritsar North","09/01/2012",1]
[null,null,2,"Sh. Tarsem Singh","Sh. Kuldeep Singh","45 Years","2946/14, Ram Talai G.T. Road Amritsar","Bahujan Samaj Party ","Mazbi","S. No. 159   Booth No. 73 AC 18- Amritsar East","09/01/2012",1]
[null,"19-Amritsar South","Nil","Nil","Nil","Nil","Nil","Nil","Nil","Nil",null,""]
[null,"20-Attari (SC)","Nil","Nil","Nil","Nil","Nil","Nil","Nil","Nil",null,""]
[null,"25-Baba Bakala (SC)",1,"Sh. gurnam singh","Sh. Karnail singh",52,"Daud tehsil, baba bakala","CPM, PUNJAB","Majbi Sikh","Part- 29 ,       Sr. No- 63","09/01/2012",1]
["Tarn Taran","21-Tarn Taran ","Nil","Nil","Nil","Nil","Nil","Nil","Nil","Nil",null,""]
[null,"22-Khemkaran","Nil","Nil","Nil","Nil","Nil","Nil","Nil","Nil",null,""]
[null,"23-Patti",1,"Harminder Singh","Dalip Singh",47,"Ward No 2 Garden Coloney, Patti","INC","General","Part NO 54       Vote No 188","09/01/2012",1]
[null,null,2,"Sukhchain Singh","Nazer Singh",63,"Vill Nandpur PO Kairon, Patii","BSP(A)","SC","Part NO 38     Vote No 225    ","09/01/2012",1]
[null,"24-Khadoor Sahib ",1,"Ramanjit singh Sikki","Sukhdev singh",44,"H No 148, Industry Area, Phase No 1, Goindwal Sahib, Tehsil Khadur Sahib, Distt Tarntaran","I.N.C","General",607,"09/01/2012",1]
[null,null,2,"Tavleen Sohata","Ramanjit singh Sikki",42,"H No 148, Industry Area, Phase No 1, Goindwal Sahib, Tehsil Khadur Sahib, Distt Tarntaran","I.N.C.","General",608,"09/01/2012",1]
["Kapurthala","26-Bholath",1,"Sukhpal Singh","Sukhjinder Singh",46,"VPO Ramgarh, Teh. Bholath. Distt. KPT","Indian NationalCongress","General","Part No 81         Vote No 895","09/01/2012",1]
[null,null,2,"Sukhpal Singh","Sukhjinder Singh",46,"VPO Ramgarh, Teh. Bholath. Distt. KPT","Indian NationalCongress","General","Part No 81         Vote No 895","09/01/2012",1]
[null,null,3,"Jatinder Kaur","Sukhpal Singh",45,"VPO Ramgarh, Teh. Bholath. Distt. KPT","Indian NationalCongress","General","Part No 81         Vote No 896","09/01/2012",1]
[null,"27-Kapurthala","Nil","Nil","Nil","Nil","Nil","Nil","Nil","Nil",null,""]
[null,"28-Sultanpur Lodhi",1," Sh. Navtej Singh","Sh. Gurmail Singh","36 Years","Village Bussowal, Tehsil Sultanpur Lodhi","Indian National Congress","General",728,"09/01/2012",1]
[null,null,2,"Smt. Jaspal Kaur","Sh. Navtej Singh","34 Years","Village Bussowal, Tehsil Sultanpur Lodhi","Indian National Congress","General",729,"09/01/2012",1]
[null,null,3,"Sh. Jaimal Singh","S.Satnam Singh","72 Years","Sadar Bazaar, Sultanpur Lodhi","People 's Party of Punjab","General",286,"09/01/2012",1]
[null,null,4,"Sh. Balwant Singh","Sh. Karam Chand","58 Years","Village Dera Saida P.O. Sultanpur Lodhi, Kapurthala","Bahujan Samaj Party   (Ambedkar)","Schedule Caste",244,"09/01/2012",1]
[null,"29-Phagwara",1,"Jarnail Singh","Jawahar Lal",37,"Vill Nangal, P.O. Chachoki, The. Phagwara, Distt. Kapurthala","BSP","Adh-Dharmi","Part No. 94\nVote. No. 645","07/01/2012",""]
[null,null,2,"Yashpal Atwal","Piara Lal",35,"R/o H No 161St No 7 Old Sabzi Mandi Banga Road Phagwara Distt Kapurthala","Independent","SC","Part No 156     Vote No 334","09/01/2012",1]
["Jalandhar","30-Phillaur (SC)",1,"Baldev Singh","Ram Pal",32,"V.P.O.Khaira, Tehsil Phillaur, District Jalandhar.","BSP","SC"," Part No.175   Vote No. 466","07/01/2012",""]
[null,null,2,"Gurmukh Singh ","Ram Pal",36,"V.P.O.Khaira, Tehsil Phillaur, District Jalandhar.","BSP","SC"," Part No.175   Vote No. 463","07/01/2012",""]
[null,"31-Nakodar",1,"Gurmail Ram","Kishna Ram",52,"Vill.Sagar Pur, Tehsil Phillaur, District Jalandhar","Bahujan Samaj Party","SC","AC-031     Booth No.200 Sr.No.32 ","07/01/2012",""]
[null,null,2,"Amarjit Singh Samra","Ujagar Singh",68,"182, New Jawahar Nagar, Jalandhar","I.N.C.","-","Part No 29      Vote No 316","09/01/2012",1]
[null,null,3,"Surinder Kaur","Amarjit Singh Samra",70,"182, New Jawahar Nagar, Jalandhar","I.N.C.","-","Part No 29      Vote No 317","09/01/2012",1]
[null,"32-Shahkot",1,"Charandeep Singh","Gurcharan Singh",63,"H. No. 2765, Mohalla Azad Nagar, Ward No. 1, Shahkot","I.N.C.","N.A"," Part No. 108 Sr. No. 502","09/01/2012",1]
[null,"33-Kartarpur (SC)","Nil","Nil","Nil","Nil","Nil","Nil","Nil","Nil",null,""]
[null,"34-Jal West (SC)",1," Chuni Lal Bhagat","Late Sh. Mehnga Ram ",81,"142/ 3-4 Bhargav Nagar, Jalandhar","B.J.P ","S/C","Vote No 850","09/01/2012",1]
[null,null,2,"Mohinder Pal "," Chuni Lal Bhagat",53,"142/ 3-4 Bhargav Nagar, Jalandhar","B.J.P ","S/C","Vote No 853","09/01/2012",1]
[null,"35-Jal Central",1,"Manoranjan Kalia","Manmohan Kalia",53,"158/4, Central Town, Jalandhar","BJP","General","Part No 54   Vote No 62","06/01/2012",""]
[null,null,2,"Manoranjan Kalia","Manmohan Kalia",53,"158/4, Central Town, Jalandhar","BJP","General","Part No 54   Vote No 62","06/01/2012",{"$f":"IF(K70=\"09/01/2012\",1,\"\")","v":""}]
[null,"36-Jal North",1,"K.D Bhandari","Sh.Chanan Ram",50,"H.No.61, Seth Hukam Chand Colony, Jalandhar City","BJP","Nil","Vote No.02, Booth No.4","09/01/2012",1]
[null,null,2,"Neena Bhandari","Sh.K.D.Bhandari",45,"H.No.61, Seth Hukam Chand Colony, Jalandhar City","BJP","Nil","Vote No.2, Booth No.4","09/01/2012",1]
[null,null,3,"Avtar Henry","Sh.Joginder Singh",66,"H.No.169, Old Railway Road, Jalandhar City.","INC","Nil","Vote No.430, Booth No.156","09/01/2012",1]
[null,null,4,"Avtar Singh Junior","Sh.Avtar Henry",35,"H.No.169, Old Railway Road, Jalandhar City.","INC","Nil","Vote No.695, Booth No.156","09/01/2012",1]
[null,"37-Jal Cantt",1,"Hardev Kaur","Prem Dass",63,"674, Guru Teg Bahadar Nagar, Jalandhar","Bahujan Samaj Party","SC","Part No 07      Vote No 909","09/01/2012",1]
[null,null,2,"Prem Dass","Tara Chand",65,"674, Guru Teg Bahadar Nagar, Jalandhar","Bahujan Samaj Party","SC","Part No 07      Vote No 918","09/01/2012",1]
[null,"38-Adampur (SC)","Nil","Nil","Nil","Nil","Nil","Nil","Nil","Nil",null,""]
["Hoshiarpur","39-Mukerian",1,"Amarjit Singh","Nanak Chand",29,"Mohalla Kishan Pura, Railway Road, Mukerian","Independent","N.A.","Part No 62   Vote No 542","07/01/2012",""]
[null,null,2,"Arunesh Kumar","Bal Mukand",61,"H no 137 Ward No 5 Mohalla Khullran, Mukerian, Distt Hoshiarpur","BJP","NA","Part No 50      vote No 570","09/01/2012",1]
[null,null,3,"Janak Singh","Mahant singh",72,"Vill Bagroi PO Tanda Ram Sahai, Mukerian Distt.Hoshiarpur","BJP","NA","Part NO 21     Vote No 132","09/01/2012",1]
[null,null,4,"Arunesh Kumar","Bal Mukand",62,"H no 137 Ward No 5 Mohalla Khullran, Mukerian, Distt Hoshiarpur","BJP","NA","Part No 50      vote No 571","09/01/2012",1]
[null,"40-Dasuya","Nil","Nil","Nil","Nil","Nil","Nil","Nil","Nil",null,""]
[null,"41-Urmar","Nil","Nil","Nil","Nil","Nil","Nil","Nil","Nil",null,""]
[null,"42-Sham Chaurasi",1,"Mohinder Kaur","D/o Arjun Singh",64,"H No 178 Khawaspur Piplanwala, Tehsil and Distt Hoshiarpur","SAD","Adh-Dharmi","Part No 07      vote No 846","09/01/2012",1]
[null,"43-Hoshiarpur",1,"Tikshan Sud","Jagdish Ram Sud",57,"Mohalla Civil Lines, Hoshiarpur","BJP","Nil","Part No 80   Vote No 960","06/01/2012",""]
[null,null,2,"Rakesh Sud","Tikshan Sud",56,"Mohalla Civil Lines, Hoshiarpur","BJP","Nil","Part No 80   Vote No 961","06/01/2012",""]
[null,"44-Chabbewal","Nil","Nil","Nil","Nil","Nil","Nil","Nil","Nil",null,""]
[null,"45-Garhshankar",1,"Gurlal","Gurdev singh",42,"VPO Saila Kalan Tehsil Garahshankar, Distt Hoshiarpur","BSP","SC","Part NO 63     Vote NO 35","09/01/2012",1]
["Nawa Shahr","46-Banga",1,"Rajinder Singh","Bakshish Singh","44 Yrs.","V.P.O. Muggowal, Tehsil Garhshankar, Distt. Hoshiarpur","Bahujan Smaj Party","Ramdasia Sikh","AC No 45        Part No. 31     Vote No. 19\n","09/01/2012",1]
[null,"47-Nawanshahr",1,"Sh. Vinod Kumar","Sh. Sukhdev Raj ","44 Years","V.P.O. Saloh \n(Nawanshahr)","B.S.P.","General","Part No 73      Vote No 399","09/01/2012",1]
[null,"48-Balachaur",1,"Nand Lal","Lachhman Dass",65,"VPO Karimpur Dhiani, Tehsil Balachaur, Distt. Shahid Bhagat Singh Nagar","Shiromani Akali Dal","-",384,"06/01/2012",""]
[null,null,2,"Ashok Kumar","Nand Lal",33,"VPO Karimpur Dhiani, Tehsil Balachaur, Distt. Shahid Bhagat Singh Nagar","Shiromani Akali Dal","-",392,"06/01/2012",""]
[null,null,3,"Shiv Ram Singh","Amin Chand","47 yrs.","Village Ballowal Saunkhri, P.O. Takarla, Tehsil Balachaur, Distt. Shahid Bhagat Singh Nagar","Bahujan Samaj Party","-",227,"09/01/2012",1]
[null,null,4,"Shiv Ram Singh","Amin Chand","47 yrs.","Village Ballowal Saunkhri, P.O. Takarla, Tehsil Balachaur, Distt. Shahid Bhagat Singh Nagar","Bahujan Samaj Party","-",227,"09/01/2012",1]
[null,null,5,"Kewal Krishan","Amin Chand","52 yrs.","Village Ballowal Saunkhri, P.O. Takarla, Tehsil Balachaur, Distt. Shahid Bhagat Singh Nagar","Bahujan Samaj Party","-",222,"09/01/2012",1]
["Ropar","49-Anandpur Sahib","Nil","Nil","Nil","Nil","Nil","Nil","Nil","Nil",null,""]
[null,"50-Roopnagar","Nil","Nil","Nil","Nil","Nil","Nil","Nil","Nil",null,""]
[null,"51-Chamkaur Sahib",1,"Rajinder Singh","Gurcharan Singh",45,"Vill Nanherian PO Jhingran Kalan Tehsil Kahrar, SAS Nagar Mohali","BSP","Ramdassi","AC No 52        Part no 91       Vote no 831","09/01/2012",1]
["S.A.S. Nagar","52-Kharar",1,"Harnek Singh","Badan Singh","63 years","#242 Guria Patti Vill & P.O. Gharuan Teh. Kharar Distt. S.A.S. Nzgar.","People's Party of Punjab","General","A.C. No. 051 Chankaur Sahib Booth No 171 Vote No.986","09/01/2012",1]
[null,null,2,"Gurtej Singh","Harnek Singh","27 years","#242 Guria Patti Vill & P.O. Gharuan Teh. Kharar Distt. S.A.S. Nzgar.","People's Party of Punjab","General","A.C. No. 051 Chankaur Sahib Booth No 171 Vote No.988","09/01/2012",1]
[null,"53-S.A.S Nagar","Nil","Nil","Nil","Nil","Nil","Nil","Nil","Nil",null,""]
[null,"112-DeraBassi",1,"Bhagwant Singh ","Natha Singh",65,"Vill- Baltana, Teh- Dera Bassi, Distt. SAS Nagar","People Party of Punjab","General","Part No. 10 Sr. No. 13","07/01/2012",""]
[null,null,2,"Parminder Pal Kaur","Bhagwant Singh",59,"Vill- Baltana, Teh- Dera Bassi, Distt. SAS Nagar","People Party of Punjab (Covering Candidate)","General","Part No. 10 Sr. No. 14","07/01/2012",""]
["Fatehgarh Sahib","54-Bassi Pathana(SC)",1,"Amarnath Singh","Pritam Singh",60,"Village Khudadadpur, Tehsil Bassi Pathana, District Fatehgarh Sahib, Pb.","Bahujan Samaj Party ","Schedule Caste","Part No.82    Serial No639","06/01/2012",""]
[null,"55-Fatehgarh Sahib",1,"Harbans Lal","Pani Lal","57 years","H.No. 1925, Professor Colony, Street No. 3, W.No. 11, Sirhind, Tehsile & Distt. Fatehgarh Sahib","Independent","General","Part No. 37 Sr.No 431 ","09/01/2012",1]
[null,null,2,"Lakhvir Singh","Rai Singh","42 years","Village & PO. Mulepur, Tehsil & Distt. Fatehgarh Sahib","Independent","General","Part No. 125 Sr.No 439","09/01/2012",1]
[null,"56-Amloh",1,"Kuldeep Singh","Bhag Singh","62 years","Village Bhadalthuha, Tehsil Amloh, District Fatehgarh Sahib","Bahujan Samaj Party","NIL","Part No. 116 Sr.No 368 ","09/01/2012",1]
[null,null,2,"Bahadar Singh","Mewa Singh","45 years","Village Bhadalthuha, Tehsil Amloh, District Fatehgarh Sahib","Bahujan Samaj Party","NIL","Part No. 115 Sr.No 607","09/01/2012",1]
["Ludhiana","57-Khanna",1,"Navjot Singh Mandair","Hardev singh",37,"VPO Jarg Tehsil Payal, Distt Ludhiana ","BSP","-","Part No 147     Vote No 39","09/01/2012",1]
[null,null,2,"Navjot Singh Mandair","Hardev singh",37,"VPO Jarg Tehsil Payal, Distt Ludhiana ","BSP","-","Part No 147     Vote No 39","09/01/2012",1]
[null,null,3,"Manmeet Singh Mandair","Hardev singh",29,"VPO Jarg Tehsil Payal, Distt Ludhiana ","BSP","-","Part No 147     Vote No 41","09/01/2012",1]
[null,null,4,"Manmeet Singh Mandair","Hardev singh",29,"VPO Jarg Tehsil Payal, Distt Ludhiana ","BSP","-","Part No 147     Vote No 41","09/01/2012",1]
[null,"58-Samrala",1,"Amrik Singh","Chuhar Singh","69 Yrs","H.No. 181, Rama Mandi, W.No. 13, Samrala","I.N.C.","-","Part No. 22     Vote no 688","09/01/2012",1]
[null,null,2,"Amrik Singh","Chuhar Singh","69 Yrs","H.No. 181, Rama Mandi, W.No. 13, Samrala","I.N.C.","-","Part No. 22     Vote no 688","09/01/2012",1]
[null,null,3,"Amrik Singh","Chuhar Singh","69 Yrs","H.No. 181, Rama Mandi, W.No. 13, Samrala","I.N.C.","-","Part No. 22     Vote no 688","09/01/2012",1]
[null,null,4,"Amrik Singh","Chuhar Singh","69 Yrs","H.No. 181, Rama Mandi, W.No. 13, Samrala","I.N.C.","-","Part No. 22     Vote no 688","09/01/2012",1]
[null,null,5,"Kamaljeet Sngh alias Kanwaljeet Singh","Amrik Singh","45 Yrs","H.No. 181, Rama Mandi, W.No. 13, Samrala","I.N.C.","-","Part No. 22     Vote no 690","09/01/2012",1]
[null,null,6,"Kamaljeet Sngh alias Kanwaljeet Singh","Amrik Singh","45 Yrs","H.No. 181, Rama Mandi, W.No. 13, Samrala","I.N.C.","-","Part No. 22     Vote no 690","09/01/2012",1]
[null,"59-Sahnewal",1,"Jagdev Singh","Bachan Singh",65,"GT Road Sanewal","CPI (M)","NA","Const. No. 59 Part No. 133 Sr. No. 728","09/01/2012",1]
[null,null,2,"Parminder Singh","Jagdish Singh",42,"HIG 489, Punjab Housing  Board Colony, Jamalpur Awana","RJD","NA","Const. No. 60 Part No. 132 Sr. No. 247","09/01/2012",1]
[null,null,3,"Labh Singh","Mukhtiar Singh",61,"H.No.80 VPO Bhamian Kalan, Ludhiana","BSP","NA","Const. No. 59 Part No. 60","09/01/2012",1]
[null,null,4,"Sharanjit Singh","Mahinder Singh",58,"H. No. 94, Villlage Bhagpur, Ludhiana","SAD","NA","Const. No. 59 Part No. 46","09/01/2012",1]
[null,"60-LDH East",1,"Harvinder Kumar","Gurmel chand",42,"Makan No 4031 Sec 32-a chandigarh Road Ludhiana","Independent",null,"Part No 109     Vote No 432","09/01/2012",1]
[null,"61-LDH South",1,"Sh Lal Chand Rao","Sh Shiv Charan",52,"Bihari Colony, Indutrial Area-A, Backside Hotel ZOOM, Ludhiana","Puravanchal Jan Samaj","Ramdasia","AC No:63        Part No:94","09/01/2012",1]
[null,"62-Atam Nagar","Nil","Nil","Nil","Nil","Nil","Nil","Nil","Nil",null,""]
[null,"63-LDH Central",1,"Satpal Gosian","HansRaj Gosian",77,"167, Kidwai Nagar, Ludhiana","BJP",null,"Part No 31            Vote no 69 ","09/01/2012",1]
[null,null,2,"Satpal Gosian","HansRaj Gosian",77,"167, Kidwai Nagar, Ludhiana","BJP",null,"Part No 31            Vote no 69 ","09/01/2012",1]
[null,null,3,"Ajay Nayyar","Subhash Chander Nayyar",37,"House No 13 St No 1, Dharampura, Ludhiana","Independent",null,"Part No 125     Vote No 653","09/01/2012",1]
[null,null,4,"Sanjeev Nayyar","Subhash Chander Nayyar",39,"House No 13 St No 1, Dharampura, Ludhiana","Independent",null,"Part No 125     Vote No 654","09/01/2012",1]
[null,"64-LDH West","Nil","Nil","Nil","Nil","Nil","Nil","Nil","Nil",null,""]
[null,"65-LDH North","Nil","Nil","Nil","Nil","Nil","Nil","Nil","Nil",null,""]
[null,"66-Gill(S.C.)","Nil","Nil","Nil","Nil","Nil","Nil","Nil","Nil",null,""]
[null,"67-Payal (S.C.)",1,"Sukhdev Singh","Isher Singh",76,"VPO Dhamot The Payal Distt Ludhiana","BSP","SC","Part No 132       Vote No 829","09/01/2012",1]
[null,null,2,"Sukhdev Singh","Isher Singh",76,"VPO Dhamot The Payal Distt Ludhiana","BSP","SC","Part No 132       Vote No 829","09/01/2012",{"$f":"IF(K134=\"09/01/2012\",1,\"\")","v":1}]
[null,null,3,"Kulwant Singh","Surjit Singh",46,"Vill Alampur Chapra, The Payal Distt Ludhiana","BSP","SC","Part No 128       Vote No 577","09/01/2012",1]
[null,"68-Dakha","Nil","Nil","Nil","Nil","Nil","Nil","Nil","Nil",null,""]
[null,"69-Raikot (S.C.)","Nil","Nil","Nil","Nil","Nil","Nil","Nil","Nil",null,""]
[null,"70-Jagraon (S.C.)",1,"Ishar Singh","Mangoo Ram",64,"Vill Meharban, Rahon Road, Ludhiana","I.N.C.","Ramdasi","AC No 59      Part No 119","09/01/2012",1]
[null,null,2,"Gurinder Singh","Piara Singh",34,"Vill Meharban, Rahon Road, Ludhiana","I.N.C.","Ramdasi","AC No 59      Part No 119","09/01/2012",1]
["Moga","71-Nihal Singh Wala",1,"Sh. Darshan Singh","Sh. Mit Singh",34,"VPO Manuke Teh Nihal Singh Wala Distt. Moga","Shiromani Akali Dal (A)","SC","71/110/937","09/01/2012",1]
[null,null,2,"Jaswinder Kaur","Kulwinder Singh",25,"VPO Manuke Teh Nihal Singh Wala Distt. Moga","Shiromani Akali Dal (A)","SC","71/110/956","09/01/2012",1]
[null,null,3,"Mohinder Singh","Najar Singh",54,"VPO Dhurkot Ransih Teh Nihal Singh Wala Distt. Moga","CPI","Ramdasia Sikh","71/140/122","09/01/2012",1]
[null,"72-Bagha Purana",1,"Sh.Darshan Singh Brar ","Sh. Nikka Singh ","63 Year","VPO Khota Teh.Nihal Singh Wala ","Indian National Congress ","N","071/113/192 ","09/01/2012",1]
[null,null,2,"Sh.Darshan Singh Brar ","Sh.Nikka Singh ","63 Year","VPO Khota Teh.Nihal Singh Wala ","Indian National Congress ","N","071/113/292","09/01/2012",1]
[null,null,3,"Sh. Kamaljeet Singh Brar","Sh. Darshan Singh ","33 Year","VPO Khota Teh.Nihal Singh Wala ","Indian National Congress ","N","071/113/297","09/01/2012",1]
[null,"73-Moga",1,"Navneet","Naresh Kapoor",41,"H.No. 35, Gandhi Nagar, Moga","Independent","General","Part No. 144  Vote No. 198  ","05/01/2012",""]
[null,null,2,"Paramdeep Singh Gill","Nachhattar Singh Gill",60,"H.No 31/764 Muhalla Sodhian,Moga","Shiromani Akali Dal","General ","      Part No 137        Vote No 991","09/01/2012",1]
[null,null,3,"Gurdeep Kaur","Nachhattar Singh ",83,"H.No 31/764 Muhalla Sodhian,Moga","Shiromani Akali Dal","General ","Part No 137    Vote No 325","09/01/2012",1]
[null,"74-Dharamkot","Nil","Nil","Nil","Nil","Nil","Nil","Nil","Nil",null,""]
["Ferozepur","75-Zira","Nil","Nil","Nil","Nil","Nil","Nil","Nil","Nil",null,""]
[null,"76-Ferozepur Urban ","Nil","Nil","Nil","Nil","Nil","Nil","Nil","Nil",null,""]
[null,"77-Ferozepur Rural","Nil","Nil","Nil","Nil","Nil","Nil","Nil","Nil",null,""]
[null,"78-Guru Harsarai",1,"Manoj Kumar","Kashmiri Lal",38,"Narula Street Ward No. 9, Guruharsahai, District Ferozepur","-","-","Part No. 139   Vote No. 427","06/01/2012",""]
[null,null,2,"Sikander Singh","Piara Singh",38,"Dashmesh Nagar, Ward No. 1, Guruharsahai","-","S.C.(Rai Sikh)","Part No. 63     Vote No. 671","07/01/2012",""]
[null,null,3,"Gurmeet Singh Sodhi","Guru Narjit Singh",58,"Vill Mohan Ke Uttar Tehsil Guruharsahai","I.N.C.","General","Part No. 68     Vote No. 659","09/01/2012",1]
[null,null,4,"Gurmeet Singh Sodhi","Guru Narjit Singh",58,"Vill Mohan Ke Uttar Tehsil Guruharsahai","I.N.C.","General","Part No. 68     Vote No. 659","09/01/2012",1]
[null,null,5,"Gurmeet Singh Sodhi","Guru Narjit Singh",58,"Vill Mohan Ke Uttar Tehsil Guruharsahai","I.N.C.","General","Part No. 68     Vote No. 659","09/01/2012",1]
[null,null,6,"Anumit Singh Sodhi","Gurmeet Singh Sodhi",37,"Vill Mohan Ke Uttar Tehsil Guruharsahai","I.N.C.(substitute candidate)","General","Part No. 68     Vote No. 662","09/01/2012",1]
[null,null,7,"Vardev Singh","Zora Singh",47,"Chak Shuele Wala PO Ladhu Wala Uttar, Tehsil Jalalbad Distt. Fazilka","Shiromani Akali Dal","General","Part No 109      Vote No 2","09/01/2012",1]
[null,null,8,"Vardev Singh","Zora Singh",47,"Chak Shuele Wala PO Ladhu Wala Uttar, Tehsil Jalalbad Distt. Fazilka","Shiromani Akali Dal","General","Part No 109      Vote No 2","09/01/2012",1]
[null,null,9,"Vardev Singh","Zora Singh",47,"Chak Shuele Wala PO Ladhu Wala Uttar, Tehsil Jalalbad Distt. Fazilka","Shiromani Akali Dal","General","Part No 109      Vote No 2","09/01/2012",1]
[null,null,10,"Nardev Singh","Zora Singh",47,"Chak Shuele Wala PO Ladhu Wala Uttar, Tehsil Jalalbad Distt. Fazilka","Shiromani Akali Dal(substitute candidate)","General","Part No 109      Vote No 5","09/01/2012",1]
["Fazilka","79-Jalalabad",1,"Sukhbir Singh","S. Parkash Singh",49,"Village and Post Office Badal Tehsil Malout District Sri Mukatsar Sahib","Shiromani Akali Dal","-","Part No 106    Vote No272","09/01/2012",1]
[null,null,2,"Krishna Rani","S. Sher Singh",47,"Village and Post Office Ghubaya Tehsil Jalalabad District Fazilka","Shiromani Akali Dal","Scheduled Caste","Part No 26      Vote No 1001","09/01/2012",1]
[null,null,3,"Sukhbir Singh","S. Parkash Singh",49,"Village and Post Office Badal Tehsil Malout District Sri Mukatsar Sahib","Shiromani Akali Dal","-","Part No 106    Vote No272","09/01/2012",1]
[null,null,4,"Sukhbir Singh","S. Parkash Singh",49,"Village and Post Office Badal Tehsil Malout District Sri Mukatsar Sahib","Shiromani Akali Dal","-","Part No 106    Vote No272","09/01/2012",1]
[null,null,5,"Sukhbir Singh","S. Parkash Singh",49,"Village and Post Office Badal Tehsil Malout District Sri Mukatsar Sahib","Shiromani Akali Dal","-","Part No 106    Vote No272","09/01/2012",1]
[null,"80-Fazilka",1,"Sh.Jaswinder Singh","Sh. Mahinder Singh","39 Year","Village Jhuge Kehar Singh ,Dakhli Chak Banwala , P.O. Jorki Andhe Wali , Teh.& District Fazilka","Independent","General","AC No 79        Part  no. 78     Vote No 397 ","07/01/2012",""]
[null,null,2,"Sh.Jaswinder Singh","Sh. Mahinder Singh","39 Year","Village Jhuge Kehar Singh , Dakhli Chak Banwala,  P.O. Jorki Andhe Wali,  Teh.& District Fazilka","Independent","General","AC No 79        Part  no. 78     Vote No 397 ","07/01/2012",""]
[null,null,3,"Rajdeep Kaur","D/o Sh.Mahinder singh","36 Year","Village Jhuge Kehar Singh , Dakhli Chak Banwala,  P.O. Jorki Andhe Wali,  Teh.& District Fazilka","Independent","General","AC No 79        Part  no. 78     Vote No 399","07/01/2012",""]
[null,null,4," Surjit Kumar Jyani","Sh. Shopat Ram","56 Years","VPO Katehra Teh & District Fazilka","Bhartiya Janta Party ","General","AC No 82        Part No. 11     Vote No 606\n","09/01/2012",1]
[null,null,5,"Surjit Kumar Jyani","Sh. Shopat Ram","56 Years","VPO Katehra Teh & District Fazilka","Bhartiya Janta Party ","General","AC No 82        Part No. 11     Vote No 606\n","09/01/2012",1]
[null,null,6,"Surjit Kumar Jyani","Sh. Shopat Ram","56 Years","VPO Katehra Teh & District Fazilka","Bhartiya Janta Party ","General","AC No 82        Part No. 11     Vote No 606\n","09/01/2012",1]
[null,null,7,"Surjit Kumar Jyani","Sh. Shopat Ram","56 Years","VPO Katehra Teh & District Fazilka","Bhartiya Janta Party ","General","AC No 82        Part No. 11     Vote No 606\n","09/01/2012",1]
[null,null,8,"Nirmala Jayani ","Sh. Surjit Kumar Jyani","51 Years","VPO Katehra Teh & District Fazilka","Bhartiya Janta Party ","General","AC No 82        Part No. 11     Vote No 607\n","09/01/2012",1]
[null,"81-Abohar",1," Shri Sunil Kumar Jakhar","Shri Balram Jakhar","57 Year","Vill. Panjkosi, Teh Abohar,Dist Fazilka","Indian National Congres","Genral","Booth No.03      Vote No. 92","09/01/2012",1]
[null,null,2," Shri Sunil Kumar Jakhar","Shri Balram Jakhar","57 Year","Vill. Panjkosi, Teh Abohar,Dist Fazilka","Indian National Congres","Genral","Booth No.03      Vote No. 92","09/01/2012",1]
[null,null,3," Shri Sunil Kumar Jakhar","Shri Balram Jakhar","57 Year","Vill. Panjkosi, Teh Abohar,Dist Fazilka","Indian National Congres","Genral","Booth No.03      Vote No. 92","09/01/2012",1]
[null,null,4," Shri Sunil Kumar Jakhar","Shri Balram Jakhar","57 Year","Vill. Panjkosi, Teh Abohar,Dist Fazilka","Indian National Congres","Genral","Booth No.03      Vote No. 92","09/01/2012",1]
[null,"82-Balluana (SC)","Nil","Nil","Nil","Nil","Nil","Nil","Nil","Nil",null,""]
["Muktsar","83-Lambi","1","Kiranjit Singh Gehri","Jangir Singh",43,"Guru Gobind Singh Nagar,Street No.10/16, Bathinda","Lok Jan Shakti Party","SC","13/480,     092 -Bathinda Urban","09/01/2012",1]
[null,null,2,"Kiranjit Singh Gehri","Jangir Singh",43,"Guru Gobind Singh Nagar,Street No.10/16, Bathinda","Lok Jan Shakti Party","SC","13/480,     092 -Bathinda Urban","09/01/2012",1]
[null,"84-Gidderbaha",1,"Manpreet Singh","Gurdas Singh",49,"VPO Badal","PPP","General","Part No 106    Vote No277","09/01/2012",1]
[null,"85-Malout","Nil","Nil","Nil","Nil","Nil","Nil","Nil","Nil",null,""]
[null,"86-Muktsar",1,"Jaidev Singh","Jagir Singh",58,"House No 92/2 Green Avenue Pind Muktsar Rural","BSP",null,"Part No 97 vote No 477","09/01/2012",1]
[null,null,2,"Jaidev Singh","Jagir Singh",58,"House No 92/2 Green Avenue Pind Muktsar Rural","BSP",null,"Part No 97 vote No 477","09/01/2012",1]
[null,null,3,"Jaidev Singh","Jagir Singh",58,"House No 92/2 Green Avenue Pind Muktsar Rural","BSP",null,"Part No 97 vote No 477","09/01/2012",1]
["Faridkot","87-Faridkot",1,"AVTAR SINGH BRAR","NIRANJAN SINGH BRAR",74,"#KOTHI NO.3, GREEN AVNEW, CHAHAL ROAD, FARIDKOT","INC","NA","Part No108     Vote No 7  ","09/01/2012",1]
[null,null,2,"NAVDEEP SINGH BRAR","NIRANJAN SINGH BRAR",46,"#KOTHI NO.3, GREEN AVNEW, CHAHAL ROAD, FARIDKOT","INC","NA","Part No108     Vote No 9","09/01/2012",1]
[null,null,3,"JAGDISH RAI SHARMA","RAM PARKASH",54,"# S.D. PUBLIC SCHOOL, WARD NO 4, Nr RAILWAY CROSSING, CHAHAL ROAD, FARIDKOT","INDEPENDENT","NA","Part No96       Vote No 62","09/01/2012",1]
[null,"88-Kotkapura",1,"PAWANPREET SINGH","BALWANT SINGH",42,"Village  Machaki Khurd, PO Machaki  Kalan, The.& Distt. Faridkot","C.P.I.","---","AC-87              Part No-52            Sr.No. 326","07/01/2012",""]
[null,"89-Jaito",1,"JOGINDER SINGH","BAGICHA SINGH","53Y","HOUSE NO. B-12/37 NEW HARIDNDERRA NAGAR, NEAR BABA FARID PUBLIC SCHOOL, FARIDKOT","I.N.C.","SC","Ac No 87        Part No 109    Vote No 665","09/01/2012",1]
[null,null,2,"KRISHAN KAUR","JOGINDER SINGH","47Y","HOUSE NO. B-12/37 NEW HARIDNDERRA NAGAR, NEAR BABA FARID PUBLIC SCHOOL, FARIDKOT","I.N.C.","SC","Ac No 87        Part No 109    Vote No 667","09/01/2012",1]
["Bathinda","90-Rampura Phul",1,"Sh. Gurpreet Singh","Sh. Gurcharan Singh",45,"VPO Kangar Teh. Rampura Phul","INC"," --","B. No. 58 Vote No. 424","09/01/2012",1]
[null,null,2,"Sh. Gurpreet Singh","Sh. Gurcharan Singh",45,"VPO Kangar Teh. Rampura Phul","INC"," --","B. No. 58 Vote No. 424","09/01/2012",1]
[null,null,3,"Smt. Sukhpreet Kaur","Sh. Gurpreet Singh",46,"VPO Kangar Teh. Rampura Phul","INC"," --","B. No. 58 Vote No. 425","09/01/2012",1]
[null,null,4,"Smt. Sukhpreet Kaur","Sh. Gurpreet Singh",46,"VPO Kangar Teh. Rampura Phul","INC"," --","B. No. 58 Vote No. 425","09/01/2012",1]
[null,"91-Bhucho Mandi (SC)",1,"Harvinder Singh","Jasmel Singh",46,"VPO 8 HAR Raipur Distt Bathinda","PPP","SC","Part No 58      Vote No 355","09/01/2012",{"$f":"IF(K198=\"09/01/2012\",1,\"\")","v":1}]
[null,"92-Bathinda Urban",1,"Sh. Sukhdeep Singh Bhinder","Sh. Pritpal Singh",56,"# C, 20 Civil Line, Bathinda","PPP","N.A.","454/77","09/01/2012",1]
[null,"93-Bathinda Rural (SC)",1,"Sh. Makhan Singh","Sh. Asha Singh`",60,"# 16100 National Colony, Bathinda","Indian National Congress","S.C."," Ac No 092     Part No 14      Vote No 638","09/01/2012",1]
[null,null,2,"Sh. Surjit Singh Sohi","Sh. Bachan Singh",56,"3417Mohala Sirian Wala, Bathinda","Communist Party of India","S.C."," Ac No 092     Part No 90      Vote No 337","09/01/2012",1]
[null,"94-Talwandi Sabo","Nil","Nil","Nil","Nil","Nil","Nil","Nil","Nil",null,""]
[null,"95-Maur",1,"Manpreet Singh","Gurdas Singh",48,"2, Lambi Bathinda Road, Tehsil Malout Distt Sh Muktsar","PPP","Jat Sikh",277,"09/01/2012",1]
[null,null,2,"JAGJEET","Puran Singh",46,"Bazigarh Basti Behind BDPO Office, Tibba Basti, Maur Road Pind Rampura","Independent","Bazigar",505,"09/01/2012",1]
["Mansa","96-Mansa",1,"S. Gurjant Singh","S. Ruldu Singh","39 years","Baba Bujha Singh Yadgar Bhawan, Court Road, Mansa 151505,(Pb)","CPI (ML) Libration","Nil","Part No. 37     Vote No 273 ","07/01/2012",""]
[null,null,2,"Hardev Singh Arshi","Sh. Jangeer Singh",62,"# 3, Tagore Street, Dr. Mela Ram Road, Bathinda","CPI","Nil","Sr. No 429 in Part No. 192 of electoral role (92 Bathinda Urban), ","09/01/2012",1]
[null,null,3,"Hardev Singh Arshi","Sh. Jangeer Singh",62,"# 3, Tagore Street, Dr. Mela Ram Road, Bathinda","CPI","Nil","Sr. No 429 in Part No. 192 of electoral role (92 Bathinda Urban), ","09/01/2012",1]
[null,null,4,"Hardev Singh Arshi","Sh. Jangeer Singh",62,"# 3, Tagore Street, Dr. Mela Ram Road, Bathinda","CPI","Nil","Sr. No 429 in Part No. 192 of electoral role (92 Bathinda Urban), ","09/01/2012",1]
[null,null,5,"Hardev Singh Arshi","Sh. Jangeer Singh",62,"# 3, Tagore Street, Dr. Mela Ram Road, Bathinda","CPI","Nil","Sr. No 429 in Part No. 192 of electoral role (92 Bathinda Urban), ","09/01/2012",1]
[null,null,6,"Bhagwan Singh","Sh. Middha Singh",63,"Street No 5-6, ward No. 1, Preet Nagar, Mansa","BSP","Ramdasia","Sr. No 601 in Part No. 9 of electoral role (96 Mansa), ","09/01/2012",1]
[null,"97-Sardulgarh","Nil","Nil","Nil","Nil","Nil","Nil","Nil","Nil",null,""]
[null,"98-Budhlada (SC)","Nil","Nil","Nil","Nil","Nil","Nil","Nil","Nil",null,""]
["Sangrur","99-Lehra",1,"Rajinder Kaur Bhattal","Lal Singh",66,"House NO. 125, Ward No. 1, Lehra (Sangrur)","INC","N.A.","Part No. 49       Vote No.603","09/01/2012",1]
[null,null,2,"Rajinder Kaur Bhattal","Lal Singh",66,"House NO. 125, Ward No. 1, Lehra (Sangrur)","INC","N.A.","Part No. 49       Vote No.603","09/01/2012",1]
[null,null,3,"Rajinder Kaur Bhattal","Lal Singh",66,"House NO. 125, Ward No. 1, Lehra (Sangrur)","INC","N.A.","Part No. 49       Vote No.603","09/01/2012",1]
[null,null,4,"Rajinder Kaur Bhattal","Lal Singh",66,"House NO. 125, Ward No. 1, Lehra (Sangrur)","INC","N.A.","Part No. 49       Vote No.603","09/01/2012",1]
[null,"100-Dirbha (SC)","Nil","Nil","Nil","Nil","Nil","Nil","Nil","Nil",null,""]
[null,"101-Sunam","Nil","Nil","Nil","Nil","Nil","Nil","Nil","Nil",null,""]
[null,"105-Malerkotla","Nil","Nil","Nil","Nil","Nil","Nil","Nil","Nil",null,""]
[null,"106-Amargarh",1,"Sh. Lachhman Singh","Sh. Gulzar Singh",54,"Village Gajjan Majra, Teh. Malerkotla, Distt. Sangrur","Independent ","Ramdasia Sikh","Part No. 116,         Vote No.68","09/01/2012",1]
[null,"107-Dhuri",1,"Rattan Lal","Sh.Relu Ram ",65,"Ward No.7 House No.138, Pathshalla Road, Dhuri Distt.Sangrur","Independent","No","Part No 33      Vote No 538","07/01/2012",""]
[null,null,2,"Gobind Singh","Sh.Pohla Singh ",54,"Village & Post Office Longowal Distt.Sangrur","SHIROMANI AKALI DAL ","N.A.","Part No 32      Vote No 174","09/01/2012",1]
[null,null,3,"Gobind Singh","Sh.Pohla Singh ",54,"Village & Post Office Longowal Distt.Sangrur","SHIROMANI AKALI DAL ","N.A.","Part No 32      Vote No 174","09/01/2012",1]
[null,"108-Sangrur",1,"Baldev Singh Mann","Mukand Singh",70,"Vill & P.O. Sular Gharat (Sgr)","P.P.P","------","78 (100-Dirba)","09/01/2012",1]
[null,null,2,"Sanaminder Kaur","Baldev Singh Mann",69,"Vill & P.O. Sular Gharat (Sgr)","P.P.P","------","78 (100-Dirba)","09/01/2012",1]
["Barnala","102-Bhadaur(SC)",1,"Gurjant Singh","Nachattar Singh",33,"Vill Dihlwan Nabha","Independent","SC","Part No 65     Vote No 329","07/01/2012",""]
[null,null,"2","Sh Gurpreet Singh","Sh Hardev Singh","30","VPO Rurke Kalam","CPI (ML) Libration","Ramdasia Sikh","Part No 111      vote No 614","09/01/2012",1]
[null,null,"3","Sh Gurpreet Singh","Sh Hardev Singh","31","VPO Rurke Kalam","CPI (ML) Libration","Ramdasia Sikh","Part No 111      vote No 615","09/01/2012",1]
[null,"103-Barnala","Nil","Nil","Nil","Nil","Nil","Nil","Nil","Nil",null,""]
[null,"104-Mehal Kalan(SC)","Nil","Nil","Nil","Nil","Nil","Nil","Nil","Nil",null,""]
["Patiala","109-Nabha (SC)","Nil","Nil","Nil","Nil","Nil","Nil","Nil","Nil",null,""]
[null,"110-Patiala Rural",1,"Sh. Satbir Singh Khatra","Ranbir Singh Khatra",29,"52-B, Sarabha Nagar, Bhadson Road, Patiala.","Independent","Nil","60/813","09/01/2012",1]
[null,null,2,"Smt. Preet Inder Pal Kaur","Sh. Satbir Singh Khatra",31,"52-B, Sarabha Nagar, Bhadson Road, Patiala.","Independent","Nil","60/812","09/01/2012",1]
[null,"111-Rajpura",1,"JAGJEET SINGH","SITAL SINGH","32Y","VILL.CHARBAR P.O NAGGAL , TEH.DERA BASSI DISTT.SAS NAGAR","BSP","SC","Part No.          Vote No. 576","07/01/2012",""]
[null,null,2,"SURJEET KAUR","JAGJEET SINGH","30Y","VILL.CHARBAR P.O NAGGAL , TEH.DERA BASSI DISTT.SAS NAGAR","BSP","SC","Part No.          Vote No. 577","07/01/2012",""]
[null,"113-Ghanaur",1,"Madan Lal","Ram Parkash","52 Years","House No. 22, Ward No. 6,  Ghanour, Teh. Rajpura, Distt. Patiala","I.N.C.","N.A.","Part No. 161    Vote. No. 412","09/01/2012",1]
[null,null,2,"Amarjeet Kaur","Madan Lal","45 Years","House No. 22, Ward No. 6,  Ghanour, Teh. Rajpura, Distt. Patiala","I.N.C.","N.A.","Part No. 161    Vote. No. 413","09/01/2012",1]
[null,"114-Sanaur",1,"S. Lal Singh","S. Sunder Singh","69Yrs.","# 11-B, General Chanda Singh Colony, Ward No. 45, Patiala","I.N.C.","Gen.",53,"09/01/2012",1]
[null,null,2,"S. Lal Singh","S. Sunder Singh","69Yrs.","# 11-B, General Chanda Singh Colony, Ward No. 45, Patiala","I.N.C.","Gen.",53,"09/01/2012",1]
[null,null,3,"S. Rajinder Singh","S. Lal Singh","51 Yrs.","# 9-B, General Chanda Singh Colony, Ward No. 45, Patiala","I.N.C.","Gen.",55,"09/01/2012",1]
[null,null,4,"S. Rajinder Singh","S. Lal Singh","51 Yrs.","# 9-B, General Chanda Singh Colony, Ward No. 45, Patiala","I.N.C.","Gen.",55,"09/01/2012",1]
[null,null,5,"S. Tejinder Pal Singh, Sandhu","S. Jasdev Singh Sandhu","49 Yrs.","25, Passi Road, Patiala","SAD","Gen.",4,"09/01/2012",1]
[null,null,6,"Smt. Anupinder Kaur Sandhu","Col. S. Tejinder Pal Singh, Sandhu","47Yrs.","25, Passi Road, Patiala","SAD","Gen.",5,"09/01/2012",1]
[null,"115-Patiala","Nil","Nil","Nil","Nil","Nil","Nil","Nil","Nil",null,""]
[null,"116-Samana","Nil","Nil","Nil","Nil","Nil","Nil","Nil","Nil",null,""]
[null,"117-Shutrana (SC)","Nil","Nil","Nil","Nil","Nil","Nil","Nil","Nil",null,""]
[{"$nulls":11},{"$f":"SUM(L5:L246)","v":171}]